Department family,Entity,Date,Expense type,Expense area,Supplier,Transaction number,Amount,VAT registration number
Department for Business Energy and Industrial Strategy,Intellectual Property Office,30/01/2020,Travel & Subsistence,Innovation Directorate,Personal expenses,UK000007330,691.95,Not Applicable
Department for Business Energy and Industrial Strategy,Intellectual Property Office,16/01/2020,Travel & Subsistence,Innovation Directorate,Personal expenses,UK000007277,647,Not Applicable
Department for Business Energy and Industrial Strategy,Intellectual Property Office,30/01/2020,Travel & Subsistence,Innovation Directorate,Personal expenses,UK000007336,524.6,Not Applicable
Department for Business Energy and Industrial Strategy,Intellectual Property Office,07/01/2020,Pay Costs,Patent Directorate,Acorn Recruitment Ltd,934393,538.92,Not Applicable
Department for Business Energy and Industrial Strategy,Intellectual Property Office,08/01/2020,Pay Costs,Patent Directorate,Acorn Recruitment Ltd,935156,664.67,Not Applicable
Department for Business Energy and Industrial Strategy,Intellectual Property Office,16/01/2020,Telecoms,IT Directorate,British  Telecom,M2170113JAN20,"2,398.12",Not Applicable
Department for Business Energy and Industrial Strategy,Intellectual Property Office,28/01/2020,Telecoms,IT Directorate,British  Telecom,Q003KA20JAN20,"2,884.80",Not Applicable
Department for Business Energy and Industrial Strategy,Intellectual Property Office,28/01/2020,Telecoms,IT Directorate,British  Telecom,Q005VE20JAN20,"1,476.00",Not Applicable
Department for Business Energy and Industrial Strategy,Intellectual Property Office,08/01/2020,Telecoms,IT Directorate,British  Telecom,VP02239170M21601,"2,585.69",Not Applicable
Department for Business Energy and Industrial Strategy,Intellectual Property Office,09/01/2020,Office Supplies,Patent Directorate,British Library,7000088760,"2,537.26",Not Applicable
Department for Business Energy and Industrial Strategy,Intellectual Property Office,09/01/2020,Staff Costs,People Places & Serv Directorate,British Red Cross,N1320503,669.6,Not Applicable
Department for Business Energy and Industrial Strategy,Intellectual Property Office,03/01/2020,Computer Contracts,People Places & Serv Directorate,British Standards Institution BSI,95416132,"6,244.80",Not Applicable
Department for Business Energy and Industrial Strategy,Intellectual Property Office,24/01/2020,Miscellaneous Expenses General,People Places & Serv Directorate,British Standards Institution BSI,95434547,"1,620.00",Not Applicable
Department for Business Energy and Industrial Strategy,Intellectual Property Office,08/01/2020,Staff Costs,People Places & Serv Directorate,Cabinet Office,3774938,"4,500.00",Not Applicable
Department for Business Energy and Industrial Strategy,Intellectual Property Office,08/01/2020,Staff Costs,IT Directorate,Cabinet Office,3775558,"4,800.00",Not Applicable
Department for Business Energy and Industrial Strategy,Intellectual Property Office,16/01/2020,Accommodation,People Places & Serv Directorate,Caerphilly County Borough Council,2019-20-MAR19,"35,242.00",Not Applicable
Department for Business Energy and Industrial Strategy,Intellectual Property Office,07/01/2020,Miscellaneous Expenses General,People Places & Serv Directorate,Capital Law LLP,60009009,"2,727.00",Not Applicable
Department for Business Energy and Industrial Strategy,Intellectual Property Office,22/01/2020,Supporting UK Business,Innovation Directorate,Capital Law LLP,60009270,"2,500.00",Not Applicable
Department for Business Energy and Industrial Strategy,Intellectual Property Office,14/01/2020,Accommodation,People Places & Serv Directorate,Corona Energy,14666810,"1,166.32",Not Applicable
Department for Business Energy and Industrial Strategy,Intellectual Property Office,14/01/2020,Accommodation,People Places & Serv Directorate,Corona Energy,14724272,"8,192.42",Not Applicable
Department for Business Energy and Industrial Strategy,Intellectual Property Office,14/01/2020,Accommodation,People Places & Serv Directorate,Corona Energy,14724273,"-8,288.06",Not Applicable
Department for Business Energy and Industrial Strategy,Intellectual Property Office,14/01/2020,Accommodation,People Places & Serv Directorate,Corona Energy,14724335,-814.7,Not Applicable
Department for Business Energy and Industrial Strategy,Intellectual Property Office,15/01/2020,Accommodation,People Places & Serv Directorate,Corona Energy,14866822,"3,088.60",Not Applicable
Department for Business Energy and Industrial Strategy,Intellectual Property Office,20/01/2020,Supporting UK Business,Innovation Directorate,Creation IP Ltd,IV5239,"2,500.00",Not Applicable
Department for Business Energy and Industrial Strategy,Intellectual Property Office,08/01/2020,Postage & Delivery Costs,People Places & Serv Directorate,DHL International (UK) Ltd,BRS3216117,"3,056.02",Not Applicable
Department for Business Energy and Industrial Strategy,Intellectual Property Office,22/01/2020,Postage & Delivery Costs,People Places & Serv Directorate,DHL International (UK) Ltd,BRS3266829,690.43,Not Applicable
Department for Business Energy and Industrial Strategy,Intellectual Property Office,29/01/2020,Postage & Delivery Costs,People Places & Serv Directorate,DHL International (UK) Ltd,BRS3286107,"5,188.42",Not Applicable
Department for Business Energy and Industrial Strategy,Intellectual Property Office,16/01/2020,Staff Costs,Patent Directorate,Dods Parliamentary Communications,PK0143675,"3,600.00",Not Applicable
Department for Business Energy and Industrial Strategy,Intellectual Property Office,13/01/2020,Office Supplies,Patent Directorate,EBSCO Information Services,2007966,"1,257.86",Not Applicable
Department for Business Energy and Industrial Strategy,Intellectual Property Office,13/01/2020,Office Supplies,Patent Directorate,EBSCO Information Services,CNPF-653733,"-1,257.38",Not Applicable
Department for Business Energy and Industrial Strategy,Intellectual Property Office,24/01/2020,Staff Costs,Patent Directorate,GovNet Communications,165245,"1,188.00",Not Applicable
Department for Business Energy and Industrial Strategy,Intellectual Property Office,16/01/2020,Accommodation,People Places & Serv Directorate,Healthy Workstations Ltd,34658,"1,231.94",Not Applicable
Department for Business Energy and Industrial Strategy,Intellectual Property Office,15/01/2020,Accommodation,People Places & Serv Directorate,Healthy Workstations Ltd,34749,"6,834.00",Not Applicable
Department for Business Energy and Industrial Strategy,Intellectual Property Office,08/01/2020,Accommodation,People Places & Serv Directorate,Insight Direct (UK) Ltd,4668093,"1,631.11",Not Applicable
Department for Business Energy and Industrial Strategy,Intellectual Property Office,23/01/2020,Staff Costs,Patent Directorate,IOP Publishing Ltd,8139517,"1,194.00",Not Applicable
Department for Business Energy and Industrial Strategy,Intellectual Property Office,17/01/2020,Supporting UK Business,Innovation Directorate,IP Pragmatics,2403,"2,500.00",Not Applicable
Department for Business Energy and Industrial Strategy,Intellectual Property Office,27/01/2020,Miscellaneous Expenses General,Innovation Directorate,IP Pragmatics,2409,"28,800.00",Not Applicable
Department for Business Energy and Industrial Strategy,Intellectual Property Office,08/01/2020,Pay Costs,Projects,LA International Computer Consulta,LA579923,"2,277.44",Not Applicable
Department for Business Energy and Industrial Strategy,Intellectual Property Office,20/01/2020,Pay Costs,Projects,LA International Computer Consulta,LA581639,"3,117.58",Not Applicable
Department for Business Energy and Industrial Strategy,Intellectual Property Office,27/01/2020,Pay Costs,Projects,LA International Computer Consulta,LA582542,"2,313.14",Not Applicable
Department for Business Energy and Industrial Strategy,Intellectual Property Office,27/01/2020,Pay Costs,IT Directorate,LA International Computer Consulta,LA582543,"13,452.91",Not Applicable
Department for Business Energy and Industrial Strategy,Intellectual Property Office,31/01/2020,Pay Costs,Projects,LA International Computer Consulta,LA583156,"2,231.92",Not Applicable
Department for Business Energy and Industrial Strategy,Intellectual Property Office,31/01/2020,Pay Costs,IT Directorate,LA International Computer Consulta,LA583157,"3,048.54",Not Applicable
Department for Business Energy and Industrial Strategy,Intellectual Property Office,07/01/2020,Postage & Delivery Costs,People Places & Serv Directorate,Zenith,213892,"1,033.20",Not Applicable
Department for Business Energy and Industrial Strategy,Intellectual Property Office,27/01/2020,Miscellaneous Expenses General,People Places & Serv Directorate,Zenith,215714,"1,033.20",Not Applicable
Department for Business Energy and Industrial Strategy,Intellectual Property Office,08/01/2020,Legal & Hearings,Patent Directorate,Marten Walsh Cherer Ltd,107734,"3,052.36",Not Applicable
Department for Business Energy and Industrial Strategy,Intellectual Property Office,20/01/2020,Legal & Hearings,Patent Directorate,Marten Walsh Cherer Ltd,108212,"2,047.48",Not Applicable
Department for Business Energy and Industrial Strategy,Intellectual Property Office,17/01/2020,Miscellaneous Expenses General,Patent Directorate,Ministry of Defence,7598204,993.01,Not Applicable
Department for Business Energy and Industrial Strategy,Intellectual Property Office,29/01/2020,Staff Costs,People Places & Serv Directorate,MyCSP Ltd,16035,"3,840.00",Not Applicable
Department for Business Energy and Industrial Strategy,Intellectual Property Office,27/01/2020,Information Technology,People Places & Serv Directorate,Neopost Finance Ltd,NE9000335-170120,"10,000.00",Not Applicable
Department for Business Energy and Industrial Strategy,Intellectual Property Office,21/01/2020,Information Technology,IT Directorate,QA Ltd,QACI005408,"16,704.00",Not Applicable
Department for Business Energy and Industrial Strategy,Intellectual Property Office,21/01/2020,Information Technology,IT Directorate,QA Ltd,QACI005418,"2,436.00",Not Applicable
Department for Business Energy and Industrial Strategy,Intellectual Property Office,21/01/2020,Information Technology,IT Directorate,QA Ltd,QACI005423,"2,088.00",Not Applicable
Department for Business Energy and Industrial Strategy,Intellectual Property Office,14/01/2020,Postage & Delivery Costs,People Places & Serv Directorate,Royal Mail,9060135979,"2,283.47",Not Applicable
Department for Business Energy and Industrial Strategy,Intellectual Property Office,22/01/2020,Postage & Delivery Costs,People Places & Serv Directorate,Royal Mail,9060242630,"2,104.85",Not Applicable
Department for Business Energy and Industrial Strategy,Intellectual Property Office,27/01/2020,Accommodation,People Places & Serv Directorate,Senator International Ltd,S01567542,504.74,Not Applicable
Department for Business Energy and Industrial Strategy,Intellectual Property Office,30/01/2020,Accommodation,People Places & Serv Directorate,Senator International Ltd,S01570660,692.94,Not Applicable
Department for Business Energy and Industrial Strategy,Intellectual Property Office,15/01/2020,Accommodation,People Places & Serv Directorate,Senator International Ltd,S01570661,670.5,Not Applicable
Department for Business Energy and Industrial Strategy,Intellectual Property Office,27/01/2020,Accommodation,People Places & Serv Directorate,Senator International Ltd,S01571780,504.74,Not Applicable
Department for Business Energy and Industrial Strategy,Intellectual Property Office,30/01/2020,Accommodation,People Places & Serv Directorate,Senator International Ltd,S01573417,670.5,Not Applicable
Department for Business Energy and Industrial Strategy,Intellectual Property Office,27/01/2020,Accommodation,People Places & Serv Directorate,Senator International Ltd,S01573418,730.36,Not Applicable
Department for Business Energy and Industrial Strategy,Intellectual Property Office,31/01/2020,Accommodation,People Places & Serv Directorate,Senator International Ltd,S01574790,504.72,Not Applicable
Department for Business Energy and Industrial Strategy,Intellectual Property Office,15/01/2020,Information Technology,IT Directorate,Softcat Ltd,INV02455339,"27,535.45",Not Applicable
Department for Business Energy and Industrial Strategy,Intellectual Property Office,06/01/2020,Information Technology,IT Directorate,Specialist Computer Centres Plc,OP/M692922,"18,588.28",Not Applicable
Department for Business Energy and Industrial Strategy,Intellectual Property Office,06/01/2020,Information Technology,IT Directorate,Specialist Computer Centres Plc,OP/M692923,"3,486.38",Not Applicable
Department for Business Energy and Industrial Strategy,Intellectual Property Office,06/01/2020,Information Technology,IT Directorate,Specialist Computer Centres Plc,OP/M692924,"3,544.52",Not Applicable
Department for Business Energy and Industrial Strategy,Intellectual Property Office,06/01/2020,Information Technology,IT Directorate,Specialist Computer Centres Plc,OP/M692925,"11,150.98",Not Applicable
Department for Business Energy and Industrial Strategy,Intellectual Property Office,06/01/2020,Information Technology,IT Directorate,Specialist Computer Centres Plc,OP/M692926,"2,439.94",Not Applicable
Department for Business Energy and Industrial Strategy,Intellectual Property Office,06/01/2020,Information Technology,IT Directorate,Specialist Computer Centres Plc,OP/M692927,"2,035.10",Not Applicable
Department for Business Energy and Industrial Strategy,Intellectual Property Office,06/01/2020,Information Technology,IT Directorate,Specialist Computer Centres Plc,OP/M692928,"1,684.45",Not Applicable
Department for Business Energy and Industrial Strategy,Intellectual Property Office,06/01/2020,Information Technology,IT Directorate,Specialist Computer Centres Plc,OP/M692931,"4,560.64",Not Applicable
Department for Business Energy and Industrial Strategy,Intellectual Property Office,06/01/2020,Information Technology,IT Directorate,Specialist Computer Centres Plc,OP/M692932,533.58,Not Applicable
Department for Business Energy and Industrial Strategy,Intellectual Property Office,09/01/2020,Information Technology,IT Directorate,Specialist Computer Centres Plc,OP/M694195,"1,798.55",Not Applicable
Department for Business Energy and Industrial Strategy,Intellectual Property Office,07/01/2020,Information Technology,IT Directorate,Specialist Computer Centres Plc,OP/M694691,775.1,Not Applicable
Department for Business Energy and Industrial Strategy,Intellectual Property Office,10/01/2020,Information Technology,IT Directorate,Specialist Computer Centres Plc,OP/M697532,607.5,Not Applicable
Department for Business Energy and Industrial Strategy,Intellectual Property Office,10/01/2020,Information Technology,IT Directorate,Specialist Computer Centres Plc,OP/M697533,607.5,Not Applicable
Department for Business Energy and Industrial Strategy,Intellectual Property Office,10/01/2020,Information Technology,IT Directorate,Specialist Computer Centres Plc,OP/M697534,607.5,Not Applicable
Department for Business Energy and Industrial Strategy,Intellectual Property Office,16/01/2020,Information Technology,IT Directorate,Specialist Computer Centres Plc,OP/M700187,"18,588.28",Not Applicable
Department for Business Energy and Industrial Strategy,Intellectual Property Office,16/01/2020,Information Technology,IT Directorate,Specialist Computer Centres Plc,OP/M700188,"3,460.74",Not Applicable
Department for Business Energy and Industrial Strategy,Intellectual Property Office,16/01/2020,Information Technology,IT Directorate,Specialist Computer Centres Plc,OP/M700189,"3,544.66",Not Applicable
Department for Business Energy and Industrial Strategy,Intellectual Property Office,16/01/2020,Information Technology,IT Directorate,Specialist Computer Centres Plc,OP/M700190,"11,150.90",Not Applicable
Department for Business Energy and Industrial Strategy,Intellectual Property Office,17/01/2020,Information Technology,IT Directorate,Specialist Computer Centres Plc,OP/M700191,"2,439.94",Not Applicable
Department for Business Energy and Industrial Strategy,Intellectual Property Office,17/01/2020,Information Technology,IT Directorate,Specialist Computer Centres Plc,OP/M700192,"2,035.10",Not Applicable
Department for Business Energy and Industrial Strategy,Intellectual Property Office,17/01/2020,Information Technology,IT Directorate,Specialist Computer Centres Plc,OP/M700193,"1,684.45",Not Applicable
Department for Business Energy and Industrial Strategy,Intellectual Property Office,16/01/2020,Information Technology,IT Directorate,Specialist Computer Centres Plc,OP/M700196,"4,560.64",Not Applicable
Department for Business Energy and Industrial Strategy,Intellectual Property Office,16/01/2020,Information Technology,IT Directorate,Specialist Computer Centres Plc,OP/M700197,"1,798.55",Not Applicable
Department for Business Energy and Industrial Strategy,Intellectual Property Office,16/01/2020,Information Technology,IT Directorate,Specialist Computer Centres Plc,OP/M700198,533.58,Not Applicable
Department for Business Energy and Industrial Strategy,Intellectual Property Office,17/01/2020,Information Technology,IT Directorate,Specialist Computer Centres Plc,OP/M701717,"4,960.70",Not Applicable
Department for Business Energy and Industrial Strategy,Intellectual Property Office,28/01/2020,Information Technology,IT Directorate,Specialist Computer Centres Plc,OP/M706068,"2,931.24",Not Applicable
Department for Business Energy and Industrial Strategy,Intellectual Property Office,14/01/2020,Information Technology,IT Directorate,Trustmarque Solutions Ltd,2293802,"49,323.01",Not Applicable
Department for Business Energy and Industrial Strategy,Intellectual Property Office,06/01/2020,Travel & Subsistence,Patent Directorate,Veezu Ltd T/A Dragon Taxis (Newpor,10602,12.6,Not Applicable
Department for Business Energy and Industrial Strategy,Intellectual Property Office,06/01/2020,Travel & Subsistence,Patent Directorate,Veezu Ltd T/A Dragon Taxis (Newpor,10602,7.8,Not Applicable
Department for Business Energy and Industrial Strategy,Intellectual Property Office,06/01/2020,Travel & Subsistence,International Policy Directorate,Veezu Ltd T/A Dragon Taxis (Newpor,10602,7.8,Not Applicable
Department for Business Energy and Industrial Strategy,Intellectual Property Office,06/01/2020,Travel & Subsistence,Innovation Directorate,Veezu Ltd T/A Dragon Taxis (Newpor,10602,5.7,Not Applicable
Department for Business Energy and Industrial Strategy,Intellectual Property Office,06/01/2020,Travel & Subsistence,Innovation Directorate,Veezu Ltd T/A Dragon Taxis (Newpor,10602,123.6,Not Applicable
Department for Business Energy and Industrial Strategy,Intellectual Property Office,06/01/2020,Travel & Subsistence,Copyright and Enforcement Directorate,Veezu Ltd T/A Dragon Taxis (Newpor,10602,13.2,Not Applicable
Department for Business Energy and Industrial Strategy,Intellectual Property Office,06/01/2020,Travel & Subsistence,People Places & Serv Directorate,Veezu Ltd T/A Dragon Taxis (Newpor,10602,15.6,Not Applicable
Department for Business Energy and Industrial Strategy,Intellectual Property Office,06/01/2020,Travel & Subsistence,International Policy Directorate,Veezu Ltd T/A Dragon Taxis (Newpor,10602,319.5,Not Applicable
Department for Business Energy and Industrial Strategy,Intellectual Property Office,06/01/2020,Travel & Subsistence,Patent Directorate,Veezu Ltd T/A Dragon Taxis (Newpor,10602,10.26,Not Applicable
Department for Business Energy and Industrial Strategy,Intellectual Property Office,06/01/2020,Travel & Subsistence,Projects,Veezu Ltd T/A Dragon Taxis (Newpor,10602,23.4,Not Applicable
Department for Business Energy and Industrial Strategy,Intellectual Property Office,06/01/2020,Travel & Subsistence,People Places & Serv Directorate,Veezu Ltd T/A Dragon Taxis (Newpor,10602,7.8,Not Applicable
Department for Business Energy and Industrial Strategy,Intellectual Property Office,06/01/2020,Travel & Subsistence,Innovation Directorate,Veezu Ltd T/A Dragon Taxis (Newpor,10602,54,Not Applicable
Department for Business Energy and Industrial Strategy,Intellectual Property Office,06/01/2020,Travel & Subsistence,Copyright and Enforcement Directorate,Veezu Ltd T/A Dragon Taxis (Newpor,10602,101.4,Not Applicable
Department for Business Energy and Industrial Strategy,Intellectual Property Office,06/01/2020,Travel & Subsistence,People Places & Serv Directorate,Veezu Ltd T/A Dragon Taxis (Newpor,10602,7.8,Not Applicable
Department for Business Energy and Industrial Strategy,Intellectual Property Office,06/01/2020,Travel & Subsistence,People Places & Serv Directorate,Veezu Ltd T/A Dragon Taxis (Newpor,10602,7.8,Not Applicable
Department for Business Energy and Industrial Strategy,Intellectual Property Office,09/01/2020,Office Machinery,People Places & Serv Directorate,Xerox (UK) Ltd,1609824271,599.98,Not Applicable
Department for Business Energy and Industrial Strategy,Intellectual Property Office,09/01/2020,Office Machinery,People Places & Serv Directorate,Xerox (UK) Ltd,1609824272,599.98,Not Applicable
Department for Business Energy and Industrial Strategy,Intellectual Property Office,09/01/2020,Office Machinery,People Places & Serv Directorate,Xerox (UK) Ltd,1609824274,"1,027.19",Not Applicable
Department for Business Energy and Industrial Strategy,Intellectual Property Office,09/01/2020,Office Machinery,People Places & Serv Directorate,Xerox (UK) Ltd,1609824275,"1,027.19",Not Applicable
Department for Business Energy and Industrial Strategy,Intellectual Property Office,13/01/2020,Office Machinery,People Places & Serv Directorate,Xerox (UK) Ltd,1609852898,"7,499.92",Not Applicable
Department for Business Energy and Industrial Strategy,Intellectual Property Office,13/01/2020,Office Machinery,People Places & Serv Directorate,Xerox (UK) Ltd,1609852899,"5,501.11",Not Applicable
Department for Business Energy and Industrial Strategy,Intellectual Property Office,13/01/2020,Office Machinery,People Places & Serv Directorate,Xerox (UK) Ltd,1609852900,"2,084.59",Not Applicable
Department for Business Energy and Industrial Strategy,Intellectual Property Office,31/01/2020,Office Machinery,People Places & Serv Directorate,Xerox (UK) Ltd,1609906022,739.2,Not Applicable
Department for Business Energy and Industrial Strategy,Intellectual Property Office,08/01/2020,Office Supplies,People Places & Serv Directorate,Antalis Limited,9005169,939.41,Not Applicable
Department for Business Energy and Industrial Strategy,Intellectual Property Office,08/01/2020,Office Supplies,People Places & Serv Directorate,Antalis Limited,9005169,"6,096.89",Not Applicable
Department for Business Energy and Industrial Strategy,Intellectual Property Office,31/01/2020,Office Supplies,People Places & Serv Directorate,Antalis Limited,9056438,57.5,Not Applicable
Department for Business Energy and Industrial Strategy,Intellectual Property Office,31/01/2020,Office Supplies,People Places & Serv Directorate,Antalis Limited,9056438,"1,466.50",Not Applicable
Department for Business Energy and Industrial Strategy,Intellectual Property Office,09/01/2020,Information Technology,IT Directorate,Computacenter (UK) ltd,3882259012,"37,140.00",Not Applicable
Department for Business Energy and Industrial Strategy,Intellectual Property Office,08/01/2020,Supporting UK Business,Innovation Directorate,Marks & Clerk LLP,7118568,"2,500.00",Not Applicable
Department for Business Energy and Industrial Strategy,Intellectual Property Office,08/01/2020,Supporting UK Business,Innovation Directorate,Mewburn  Ellis LLP,128324,"1,954.48",Not Applicable
Department for Business Energy and Industrial Strategy,Intellectual Property Office,17/01/2020,Supporting UK Business,Innovation Directorate,Nash Matthews,84835,"2,499.60",Not Applicable
Department for Business Energy and Industrial Strategy,Intellectual Property Office,17/01/2020,Supporting UK Business,Innovation Directorate,Venner Shipley  LLP,360111,"2,500.00",Not Applicable
Department for Business Energy and Industrial Strategy,Intellectual Property Office,20/01/2020,Supporting UK Business,Innovation Directorate,Venner Shipley  LLP,360159,"2,500.00",Not Applicable
Department for Business Energy and Industrial Strategy,Intellectual Property Office,08/01/2020,Telecoms,IT Directorate,Vodafone Corporate Ltd,93528020,"2,192.86",Not Applicable
Department for Business Energy and Industrial Strategy,Intellectual Property Office,31/01/2020,Telecoms,IT Directorate,Vodafone Corporate Ltd,93820677,"2,167.51",Not Applicable
Department for Business Energy and Industrial Strategy,Intellectual Property Office,10/01/2020,Supporting UK Business,International Policy Directorate,FOREIGN & COMMONWEALTH OFFICE,1118083,"-3,163.60",Not Applicable
Department for Business Energy and Industrial Strategy,Intellectual Property Office,10/01/2020,Supporting UK Business,International Policy Directorate,FOREIGN & COMMONWEALTH OFFICE,1118517,"10,442.72",Not Applicable
Department for Business Energy and Industrial Strategy,Intellectual Property Office,27/01/2020,Supporting UK Business,International Policy Directorate,FOREIGN & COMMONWEALTH OFFICE,1118731,"4,798.65",Not Applicable
Department for Business Energy and Industrial Strategy,Intellectual Property Office,27/01/2020,Supporting UK Business,International Policy Directorate,FOREIGN & COMMONWEALTH OFFICE,1118983,"15,905.47",Not Applicable
Department for Business Energy and Industrial Strategy,Intellectual Property Office,31/01/2020,Supporting UK Business,International Policy Directorate,FOREIGN & COMMONWEALTH OFFICE,1119222,"25,696.73",Not Applicable
Department for Business Energy and Industrial Strategy,Intellectual Property Office,24/01/2020,Computer Contracts,People Places & Serv Directorate,HM TREASURY,42265,"71,284.50",Not Applicable
Department for Business Energy and Industrial Strategy,Intellectual Property Office,29/01/2020,Information Technology,Finance Directorate,Advanced Business Solutions,ARBK/99053002,751.19,Not Applicable
Department for Business Energy and Industrial Strategy,Intellectual Property Office,15/01/2020,Supporting UK Business,Innovation Directorate,LAWRIE INTELLECTUAL PROPERTY,115893,"2,500.00",Not Applicable
Department for Business Energy and Industrial Strategy,Intellectual Property Office,21/01/2020,Supporting UK Business,Innovation Directorate,INNGOT LTD,Q1912/3,"2,500.00",Not Applicable
Department for Business Energy and Industrial Strategy,Intellectual Property Office,21/01/2020,Supporting UK Business,Innovation Directorate,INNGOT LTD,Q1912/5,"2,500.00",Not Applicable
Department for Business Energy and Industrial Strategy,Intellectual Property Office,22/01/2020,Miscellaneous Expenses General,Innovation Directorate,INNGOT LTD,R2001/3,"12,474.00",Not Applicable
Department for Business Energy and Industrial Strategy,Intellectual Property Office,17/01/2020,Supporting UK Business,Innovation Directorate,STEPHENS SCOWN LLP,125283,"2,500.00",Not Applicable
Department for Business Energy and Industrial Strategy,Intellectual Property Office,07/01/2020,Supporting UK Business,Innovation Directorate,CAMERON INTELLECTUAL PROPERTY LTD,4313/19,"2,500.00",Not Applicable
Department for Business Energy and Industrial Strategy,Intellectual Property Office,15/01/2020,Supporting UK Business,Innovation Directorate,CAMERON INTELLECTUAL PROPERTY LTD,4382/19,"2,500.00",Not Applicable
Department for Business Energy and Industrial Strategy,Intellectual Property Office,17/01/2020,Supporting UK Business,Innovation Directorate,CAMERON INTELLECTUAL PROPERTY LTD,43831,"2,500.00",Not Applicable
Department for Business Energy and Industrial Strategy,Intellectual Property Office,09/01/2020,Pay Costs,Finance Directorate,Accountancy Recruitment Wales,999043,585.14,Not Applicable
Department for Business Energy and Industrial Strategy,Intellectual Property Office,09/01/2020,Pay Costs,Finance Directorate,Accountancy Recruitment Wales,999044,"1,496.88",Not Applicable
Department for Business Energy and Industrial Strategy,Intellectual Property Office,16/01/2020,Pay Costs,Finance Directorate,Accountancy Recruitment Wales,999047,"2,104.70",Not Applicable
Department for Business Energy and Industrial Strategy,Intellectual Property Office,16/01/2020,Pay Costs,Finance Directorate,Accountancy Recruitment Wales,999048,859.44,Not Applicable
Department for Business Energy and Industrial Strategy,Intellectual Property Office,16/01/2020,Pay Costs,Finance Directorate,Accountancy Recruitment Wales,999049,866.84,Not Applicable
Department for Business Energy and Industrial Strategy,Intellectual Property Office,23/01/2020,Pay Costs,Finance Directorate,Accountancy Recruitment Wales,999053,872.03,Not Applicable
Department for Business Energy and Industrial Strategy,Intellectual Property Office,23/01/2020,Pay Costs,Finance Directorate,Accountancy Recruitment Wales,999054,866.84,Not Applicable
Department for Business Energy and Industrial Strategy,Intellectual Property Office,23/01/2020,Pay Costs,Finance Directorate,Accountancy Recruitment Wales,999055,"2,122.85",Not Applicable
Department for Business Energy and Industrial Strategy,Intellectual Property Office,30/01/2020,Pay Costs,Finance Directorate,Accountancy Recruitment Wales,999058,816.29,Not Applicable
Department for Business Energy and Industrial Strategy,Intellectual Property Office,30/01/2020,Pay Costs,Finance Directorate,Accountancy Recruitment Wales,999059,"2,013.98",Not Applicable
Department for Business Energy and Industrial Strategy,Intellectual Property Office,10/01/2020,Postage & Delivery Costs,People Places & Serv Directorate,CitySprint (UK) Ltd,3229222,"7,405.31",Not Applicable
Department for Business Energy and Industrial Strategy,Intellectual Property Office,09/01/2020,Accommodation,People Places & Serv Directorate,EDF ENERGY,6954337,"1,256.02",Not Applicable
Department for Business Energy and Industrial Strategy,Intellectual Property Office,09/01/2020,Accommodation,People Places & Serv Directorate,EDF ENERGY,7009386,"30,606.91",Not Applicable
Department for Business Energy and Industrial Strategy,Intellectual Property Office,20/01/2020,Office Supplies,People Places & Serv Directorate,STAMPS DIRECT LTD,CA360340,"2,048.50",Not Applicable
Department for Business Energy and Industrial Strategy,Intellectual Property Office,03/01/2020,Information Technology,IT Directorate,Bytes Software Services Ltd,598998,"122,774.40",Not Applicable
Department for Business Energy and Industrial Strategy,Intellectual Property Office,17/01/2020,Staff Costs,People Places & Serv Directorate,TMS Development International Ltd,17410,"2,400.00",Not Applicable
Department for Business Energy and Industrial Strategy,Intellectual Property Office,10/01/2020,Staff Costs,Patent Directorate,University of Bath,80179,684,Not Applicable
Department for Business Energy and Industrial Strategy,Intellectual Property Office,15/01/2020,Staff Costs,People Places & Serv Directorate,Sodexo Motivation Solutions UK Ltd,3623754,"8,270.70",Not Applicable
Department for Business Energy and Industrial Strategy,Intellectual Property Office,15/01/2020,Staff Costs,People Places & Serv Directorate,Sodexo Motivation Solutions UK Ltd,3623797,"11,119.00",Not Applicable
Department for Business Energy and Industrial Strategy,Intellectual Property Office,16/01/2020,Legal & Hearings,Patent Directorate,Government Legal Department,475809,889.9,Not Applicable
Department for Business Energy and Industrial Strategy,Intellectual Property Office,14/01/2020,Legal & Hearings,Patent Directorate,Government Legal Department,475879,"6,571.45",Not Applicable
Department for Business Energy and Industrial Strategy,Intellectual Property Office,22/01/2020,Telecoms,IT Directorate,Personal expenses,UK10/012020/6574,"3,322.08",Not Applicable
Department for Business Energy and Industrial Strategy,Intellectual Property Office,22/01/2020,Telecoms,IT Directorate,Personal expenses,UK10/122019/4117,"3,322.08",Not Applicable
Department for Business Energy and Industrial Strategy,Intellectual Property Office,20/01/2020,Accommodation,People Places & Serv Directorate,PHS Group,67151616,"2,616.00",Not Applicable
Department for Business Energy and Industrial Strategy,Intellectual Property Office,10/01/2020,Staff Costs,Patent Directorate,Celtic Manor Resort,EKT081,838,Not Applicable
Department for Business Energy and Industrial Strategy,Intellectual Property Office,15/01/2020,Supporting UK Business,Innovation Directorate,Coller IP Management Ltd,INV-11012,"2,500.00",Not Applicable
Department for Business Energy and Industrial Strategy,Intellectual Property Office,28/01/2020,Supporting UK Business,Innovation Directorate,Wilson Gunn,97210M,"2,500.00",Not Applicable
Department for Business Energy and Industrial Strategy,Intellectual Property Office,15/01/2020,Supporting UK Business,Innovation Directorate,K. W. Peter & Co,102346,"2,500.00",Not Applicable
Department for Business Energy and Industrial Strategy,Intellectual Property Office,24/01/2020,Miscellaneous Expenses General,Patent Directorate,European Patent Office,40296075,"44,597.31",Not Applicable
Department for Business Energy and Industrial Strategy,Intellectual Property Office,24/01/2020,Information Technology,Patent Directorate,European Patent Office,40296124,"105,612.39",Not Applicable
Department for Business Energy and Industrial Strategy,Intellectual Property Office,24/01/2020,Information Technology,Patent Directorate,STN International,9340345159,"186,005.63",Not Applicable
Department for Business Energy and Industrial Strategy,Intellectual Property Office,03/01/2020,Supporting UK Business,Innovation Directorate,HARPER MACLEOD LLP,D1043412,"2,500.00",Not Applicable
Department for Business Energy and Industrial Strategy,Intellectual Property Office,23/01/2020,Supporting UK Business,Innovation Directorate,HARPER MACLEOD LLP,D1050365,"2,500.00",Not Applicable
Department for Business Energy and Industrial Strategy,Intellectual Property Office,21/01/2020,Miscellaneous Expenses General,People Places & Serv Directorate,Insight Health Screening,12008,910,Not Applicable
Department for Business Energy and Industrial Strategy,Intellectual Property Office,03/01/2020,Supporting UK Business,Innovation Directorate,Scintilla,INV-02009,"2,500.00",Not Applicable
Department for Business Energy and Industrial Strategy,Intellectual Property Office,30/01/2020,Supporting UK Business,Innovation Directorate,Scintilla,INV-02077,"2,500.00",Not Applicable
Department for Business Energy and Industrial Strategy,Intellectual Property Office,22/01/2020,Staff Costs,IT Directorate,Assist Knowledge Development Ltd,5494,"1,380.00",Not Applicable
Department for Business Energy and Industrial Strategy,Intellectual Property Office,10/01/2020,Information Technology,Patent Directorate,Questback,NOR5940573,"5,721.17",Not Applicable
Department for Business Energy and Industrial Strategy,Intellectual Property Office,22/01/2020,Supporting UK Business,Innovation Directorate,Forresters clear direction,KBG/5796577,"2,500.00",Not Applicable
Department for Business Energy and Industrial Strategy,Intellectual Property Office,10/01/2020,Office Machinery,People Places & Serv Directorate,Siemens Financial Services Limited,244/20/0054998,"2,858.47",Not Applicable
Department for Business Energy and Industrial Strategy,Intellectual Property Office,21/01/2020,Accommodation,People Places & Serv Directorate,Ergo Computing,SIN2001EC09671,"1,110.96",Not Applicable
Department for Business Energy and Industrial Strategy,Intellectual Property Office,28/01/2020,Information Technology,IT Directorate,IBM UNITED KINGDOM LIMITED,105592547,"154,579.36",Not Applicable
Department for Business Energy and Industrial Strategy,Intellectual Property Office,28/01/2020,Information Technology,IT Directorate,IBM UNITED KINGDOM LIMITED,105617192,"-154,579.36",Not Applicable
Department for Business Energy and Industrial Strategy,Intellectual Property Office,08/01/2020,Supporting UK Business,Innovation Directorate,Appleyard Lees,142133,"2,500.01",Not Applicable
Department for Business Energy and Industrial Strategy,Intellectual Property Office,08/01/2020,Supporting UK Business,Innovation Directorate,Appleyard Lees,142137,"2,500.01",Not Applicable
Department for Business Energy and Industrial Strategy,Intellectual Property Office,31/01/2020,Staff Costs,People Places & Serv Directorate,Media Training Ltd,INV-62381,"2,520.00",Not Applicable
Department for Business Energy and Industrial Strategy,Intellectual Property Office,16/01/2020,Supporting UK Business,Innovation Directorate,Valuation Consulting LLP,19105S-2,"2,500.00",Not Applicable
Department for Business Energy and Industrial Strategy,Intellectual Property Office,07/01/2020,Staff Costs,People Places & Serv Directorate,KPMG LLP (CSL),5501976583,"2,400.00",Not Applicable
Department for Business Energy and Industrial Strategy,Intellectual Property Office,10/01/2020,Miscellaneous Expenses General,People Places & Serv Directorate,Korn Ferry Hay Group (CSL),1195045136,"23,244.00",Not Applicable
Department for Business Energy and Industrial Strategy,Intellectual Property Office,10/01/2020,Miscellaneous Expenses General,People Places & Serv Directorate,Korn Ferry Hay Group (CSL),1195046589,"-23,244.00",Not Applicable
Department for Business Energy and Industrial Strategy,Intellectual Property Office,08/01/2020,Miscellaneous Expenses General,People Places & Serv Directorate,Korn Ferry Hay Group (CSL),1195046590,"34,066.80",Not Applicable
Department for Business Energy and Industrial Strategy,Intellectual Property Office,29/01/2020,Supporting UK Business,Innovation Directorate,Birmingham Chamber of Commerce,SINV173496,"1,500.01",Not Applicable
Department for Business Energy and Industrial Strategy,Intellectual Property Office,22/01/2020,Information Technology,IT Directorate,Micro Focus Ltd,97081151,"27,618.72",Not Applicable
Department for Business Energy and Industrial Strategy,Intellectual Property Office,15/01/2020,Supporting UK Business,Innovation Directorate,Ouzman IP Limited,721,"2,500.00",Not Applicable
Department for Business Energy and Industrial Strategy,Intellectual Property Office,23/01/2020,Supporting UK Business,Innovation Directorate,Bellwether Green,3911,"2,500.00",Not Applicable
Department for Business Energy and Industrial Strategy,Intellectual Property Office,07/01/2020,Information Technology,Projects,Responsiv Solutions Limited,RSL0820,"17,940.00",Not Applicable
Department for Business Energy and Industrial Strategy,Intellectual Property Office,07/01/2020,Miscellaneous Expenses General,IT Directorate,Responsiv Solutions Limited,RSL0821,"40,884.28",Not Applicable
Department for Business Energy and Industrial Strategy,Intellectual Property Office,07/01/2020,Miscellaneous Expenses General,Projects,Responsiv Solutions Limited,RSL0822,"21,290.96",Not Applicable
Department for Business Energy and Industrial Strategy,Intellectual Property Office,07/01/2020,Miscellaneous Expenses General,IT Directorate,Responsiv Solutions Limited,RSL0823,"20,700.00",Not Applicable
Department for Business Energy and Industrial Strategy,Intellectual Property Office,07/01/2020,Miscellaneous Expenses General,Projects,Responsiv Solutions Limited,RSL0824,"15,624.00",Not Applicable
Department for Business Energy and Industrial Strategy,Intellectual Property Office,07/01/2020,Information Technology,IT Directorate,Responsiv Solutions Limited,RSL0825,"3,024.00",Not Applicable
Department for Business Energy and Industrial Strategy,Intellectual Property Office,31/01/2020,Staff Costs,People Places & Serv Directorate,DBL Europe Ltd,INV-000254,"4,794.00",Not Applicable
Department for Business Energy and Industrial Strategy,Intellectual Property Office,17/01/2020,Supporting UK Business,Innovation Directorate,Bridle Intellectual Property Ltd,133-017,"2,500.00",Not Applicable
Department for Business Energy and Industrial Strategy,Intellectual Property Office,08/01/2020,Information Technology,IT Directorate,Equal Experts UK Limited,INV-7031,"15,000.00",Not Applicable
Department for Business Energy and Industrial Strategy,Intellectual Property Office,07/01/2020,Marketing & Publicity,Innovation Directorate,Factiva Limited,79334941,875.77,Not Applicable
Department for Business Energy and Industrial Strategy,Intellectual Property Office,24/01/2020,Information Technology,IT Directorate,Oracle America Inc,44626945,"2,135.60",Not Applicable
Department for Business Energy and Industrial Strategy,Intellectual Property Office,22/01/2020,Accommodation,People Places & Serv Directorate,Newport Wafer Fab Limited,SD00001655,"6,975.00",Not Applicable
Department for Business Energy and Industrial Strategy,Intellectual Property Office,22/01/2020,Accommodation,People Places & Serv Directorate,Newport Wafer Fab Limited,SD00001656,"11,500.00",Not Applicable
Department for Business Energy and Industrial Strategy,Intellectual Property Office,10/01/2020,Information Technology,IT Directorate,JetBrains,INVCZ2429702,"1,532.12",Not Applicable
Department for Business Energy and Industrial Strategy,Intellectual Property Office,23/01/2020,Supporting UK Business,Innovation Directorate,IP21 LTD,24643,"2,500.00",Not Applicable
Department for Business Energy and Industrial Strategy,Intellectual Property Office,14/01/2020,Information Technology,IT Directorate,CCS MEDIA,3752576,"2,071.20",Not Applicable
Department for Business Energy and Industrial Strategy,Intellectual Property Office,24/01/2020,Information Technology,IT Directorate,CCS MEDIA,3752770,"2,034.07",Not Applicable
Department for Business Energy and Industrial Strategy,Intellectual Property Office,24/01/2020,Information Technology,IT Directorate,CCS MEDIA,3755744,"2,164.01",Not Applicable
Department for Business Energy and Industrial Strategy,Intellectual Property Office,10/01/2020,Telecoms,People Places & Serv Directorate,Colt Technology Services,2.02E+12,"1,860.00",Not Applicable
Department for Business Energy and Industrial Strategy,Intellectual Property Office,27/01/2020,Office Supplies,People Places & Serv Directorate,Vinci Construction UK Ltd,19100265,40.32,Not Applicable
Department for Business Energy and Industrial Strategy,Intellectual Property Office,27/01/2020,Miscellaneous Expenses General,People Places & Serv Directorate,Vinci Construction UK Ltd,19100265,43.2,Not Applicable
Department for Business Energy and Industrial Strategy,Intellectual Property Office,27/01/2020,Miscellaneous Expenses General,Patent Directorate,Vinci Construction UK Ltd,19100265,720.96,Not Applicable
Department for Business Energy and Industrial Strategy,Intellectual Property Office,27/01/2020,Miscellaneous Expenses General,People Places & Serv Directorate,Vinci Construction UK Ltd,19100265,50.64,Not Applicable
Department for Business Energy and Industrial Strategy,Intellectual Property Office,27/01/2020,Miscellaneous Expenses General,People Places & Serv Directorate,Vinci Construction UK Ltd,19100265,918.9,Not Applicable
Department for Business Energy and Industrial Strategy,Intellectual Property Office,31/01/2020,Office Supplies,People Places & Serv Directorate,Vinci Construction UK Ltd,19110330,42,Not Applicable
Department for Business Energy and Industrial Strategy,Intellectual Property Office,31/01/2020,Miscellaneous Expenses General,People Places & Serv Directorate,Vinci Construction UK Ltd,19110330,60.84,Not Applicable
Department for Business Energy and Industrial Strategy,Intellectual Property Office,31/01/2020,Miscellaneous Expenses General,Copyright and Enforcement Directorate,Vinci Construction UK Ltd,19110330,259.2,Not Applicable
Department for Business Energy and Industrial Strategy,Intellectual Property Office,31/01/2020,Miscellaneous Expenses General,Projects,Vinci Construction UK Ltd,19110330,36,Not Applicable
Department for Business Energy and Industrial Strategy,Intellectual Property Office,31/01/2020,Miscellaneous Expenses General,People Places & Serv Directorate,Vinci Construction UK Ltd,19110330,281.94,Not Applicable
Department for Business Energy and Industrial Strategy,Intellectual Property Office,31/01/2020,Miscellaneous Expenses General,Patent Directorate,Vinci Construction UK Ltd,19110330,68.4,Not Applicable
Department for Business Energy and Industrial Strategy,Intellectual Property Office,31/01/2020,Miscellaneous Expenses General,Trade Mark Directorate,Vinci Construction UK Ltd,19110330,235.02,Not Applicable
Department for Business Energy and Industrial Strategy,Intellectual Property Office,31/01/2020,Miscellaneous Expenses General,Trade Mark Directorate,Vinci Construction UK Ltd,19110330,214.92,Not Applicable
Department for Business Energy and Industrial Strategy,Intellectual Property Office,31/01/2020,Miscellaneous Expenses General,People Places & Serv Directorate,Vinci Construction UK Ltd,19110330,"1,806.84",Not Applicable
Department for Business Energy and Industrial Strategy,Intellectual Property Office,31/01/2020,Miscellaneous Expenses General,Patent Directorate,Vinci Construction UK Ltd,19110330,9,Not Applicable
Department for Business Energy and Industrial Strategy,Intellectual Property Office,31/01/2020,Miscellaneous Expenses General,Innovation Directorate,Vinci Construction UK Ltd,19110330,548.82,Not Applicable
Department for Business Energy and Industrial Strategy,Intellectual Property Office,31/01/2020,Miscellaneous Expenses General,People Places & Serv Directorate,Vinci Construction UK Ltd,19110330,135,Not Applicable
Department for Business Energy and Industrial Strategy,Intellectual Property Office,29/01/2020,Miscellaneous Expenses General,Innovation Directorate,Vinci Construction UK Ltd,19110756,37.44,Not Applicable
Department for Business Energy and Industrial Strategy,Intellectual Property Office,29/01/2020,Miscellaneous Expenses General,People Places & Serv Directorate,Vinci Construction UK Ltd,19110756,172.56,Not Applicable
Department for Business Energy and Industrial Strategy,Intellectual Property Office,29/01/2020,Miscellaneous Expenses General,Patent Directorate,Vinci Construction UK Ltd,19110756,357.9,Not Applicable
Department for Business Energy and Industrial Strategy,Intellectual Property Office,31/01/2020,Office Supplies,People Places & Serv Directorate,Vinci Construction UK Ltd,19120007,33.6,Not Applicable
Department for Business Energy and Industrial Strategy,Intellectual Property Office,31/01/2020,Miscellaneous Expenses General,Projects,Vinci Construction UK Ltd,19120007,100.74,Not Applicable
Department for Business Energy and Industrial Strategy,Intellectual Property Office,31/01/2020,Miscellaneous Expenses General,People Places & Serv Directorate,Vinci Construction UK Ltd,19120007,134.4,Not Applicable
Department for Business Energy and Industrial Strategy,Intellectual Property Office,31/01/2020,Miscellaneous Expenses General,People Places & Serv Directorate,Vinci Construction UK Ltd,19120007,407.82,Not Applicable
Department for Business Energy and Industrial Strategy,Intellectual Property Office,31/01/2020,Miscellaneous Expenses General,Patent Directorate,Vinci Construction UK Ltd,19120007,96.48,Not Applicable
Department for Business Energy and Industrial Strategy,Intellectual Property Office,31/01/2020,Miscellaneous Expenses General,People Places & Serv Directorate,Vinci Construction UK Ltd,19120007,89.64,Not Applicable
Department for Business Energy and Industrial Strategy,Intellectual Property Office,29/01/2020,Staff Costs,People Places & Serv Directorate,Vinci Construction UK Ltd,19120008,555.7,Not Applicable
Department for Business Energy and Industrial Strategy,Intellectual Property Office,31/01/2020,Office Supplies,People Places & Serv Directorate,Vinci Construction UK Ltd,20010547,33.6,Not Applicable
Department for Business Energy and Industrial Strategy,Intellectual Property Office,31/01/2020,Miscellaneous Expenses General,Patent Directorate,Vinci Construction UK Ltd,20010547,229.14,Not Applicable
Department for Business Energy and Industrial Strategy,Intellectual Property Office,31/01/2020,Miscellaneous Expenses General,Patent Directorate,Vinci Construction UK Ltd,20010547,11.7,Not Applicable
Department for Business Energy and Industrial Strategy,Intellectual Property Office,31/01/2020,Miscellaneous Expenses General,Projects,Vinci Construction UK Ltd,20010547,54,Not Applicable
Department for Business Energy and Industrial Strategy,Intellectual Property Office,31/01/2020,Miscellaneous Expenses General,Innovation Directorate,Vinci Construction UK Ltd,20010547,116.76,Not Applicable
Department for Business Energy and Industrial Strategy,Intellectual Property Office,31/01/2020,Miscellaneous Expenses General,People Places & Serv Directorate,Vinci Construction UK Ltd,20010547,74.7,Not Applicable
Department for Business Energy and Industrial Strategy,Intellectual Property Office,31/01/2020,Miscellaneous Expenses General,People Places & Serv Directorate,Vinci Construction UK Ltd,20010547,90,Not Applicable
Department for Business Energy and Industrial Strategy,Intellectual Property Office,31/01/2020,Miscellaneous Expenses General,Copyright and Enforcement Directorate,Vinci Construction UK Ltd,20010547,230.4,Not Applicable
Department for Business Energy and Industrial Strategy,Intellectual Property Office,13/01/2020,Marketing & Publicity,Innovation Directorate,Hashtag Business Events Limited,INV-2215,"2,004.00",Not Applicable
Department for Business Energy and Industrial Strategy,Intellectual Property Office,17/01/2020,Supporting UK Business,Innovation Directorate,AA Thornton & Co,SINV-158873,"2,500.00",Not Applicable
Department for Business Energy and Industrial Strategy,Intellectual Property Office,20/01/2020,Supporting UK Business,Innovation Directorate,AA Thornton & Co,SINV159585,"2,500.00",Not Applicable
Department for Business Energy and Industrial Strategy,Intellectual Property Office,08/01/2020,Supporting UK Business,Innovation Directorate,CMS Cameron MsKenna LLP Office A/C,4126917,"2,500.00",Not Applicable
Department for Business Energy and Industrial Strategy,Intellectual Property Office,24/01/2020,Office Supplies,People Places & Serv Directorate,Blake Envelopes,SI0000655338,503.4,Not Applicable
Department for Business Energy and Industrial Strategy,Intellectual Property Office,28/01/2020,Office Supplies,People Places & Serv Directorate,Blake Envelopes,SI0000655683,"4,362.00",Not Applicable
Department for Business Energy and Industrial Strategy,Intellectual Property Office,10/01/2020,Information Technology,IT Directorate,8X8 Solutions,2572747,"1,543.78",Not Applicable
Department for Business Energy and Industrial Strategy,Intellectual Property Office,17/01/2020,Supporting UK Business,Innovation Directorate,HFG Limited,566692,"2,500.00",Not Applicable
Department for Business Energy and Industrial Strategy,Intellectual Property Office,20/01/2020,Supporting UK Business,Innovation Directorate,HFG Limited,566754,"2,500.00",Not Applicable
Department for Business Energy and Industrial Strategy,Intellectual Property Office,15/01/2020,Supporting UK Business,Innovation Directorate,The IP Asset Partnership Ltd,1912050,"2,500.00",Not Applicable
Department for Business Energy and Industrial Strategy,Intellectual Property Office,07/01/2020,Accommodation,People Places & Serv Directorate,Brookfield Properties (UK PM) Limited,2017/719,"387,129.90",Not Applicable
Department for Business Energy and Industrial Strategy,Intellectual Property Office,27/01/2020,Staff Costs,People Places & Serv Directorate,Todd Research Ltd,3589,"1,800.00",Not Applicable
Department for Business Energy and Industrial Strategy,Intellectual Property Office,31/01/2020,Supporting UK Business,Innovation Directorate,Definition IP Ltd,968,"2,500.00",Not Applicable
Department for Business Energy and Industrial Strategy,Intellectual Property Office,06/01/2020,Information Technology,IT Directorate,Perago-Wales,29,"5,100.00",Not Applicable
Department for Business Energy and Industrial Strategy,Intellectual Property Office,13/01/2020,Telecoms,IT Directorate,Gamma Telecom Ltd,GA1519069,"2,091.25",Not Applicable
Department for Business Energy and Industrial Strategy,Intellectual Property Office,08/01/2020,Staff Costs,People Places & Serv Directorate,Bethan Roberts,637-2019,657.2,Not Applicable
Department for Business Energy and Industrial Strategy,Intellectual Property Office,08/01/2020,Staff Costs,People Places & Serv Directorate,Bethan Roberts,642-2019,657.2,Not Applicable
Department for Business Energy and Industrial Strategy,Intellectual Property Office,20/01/2020,Staff Costs,People Places & Serv Directorate,Bethan Roberts,653-2019,"1,374.40",Not Applicable
Department for Business Energy and Industrial Strategy,Intellectual Property Office,27/01/2020,Staff Costs,People Places & Serv Directorate,People Untapped Limited,INV-0884,"6,000.00",Not Applicable
Department for Business Energy and Industrial Strategy,Intellectual Property Office,30/01/2020,Miscellaneous Expenses General,Copyright and Enforcement Directorate,SMi Group Ltd,292625,958.8,Not Applicable
Department for Business Energy and Industrial Strategy,Intellectual Property Office,13/01/2020,Office Machinery,IT Directorate,Kyocera Document Solutions UK Limited,1180943,"4,305.34",Not Applicable
Department for Business Energy and Industrial Strategy,Intellectual Property Office,23/01/2020,Information Technology,Copyright and Enforcement Directorate,Altia Solutions Limited,INV2019-250,"8,934.00",Not Applicable
Department for Business Energy and Industrial Strategy,Intellectual Property Office,27/01/2020,Miscellaneous Expenses General,IT Directorate,Microsoft Limited,9899115926,"53,834.40",Not Applicable
Department for Business Energy and Industrial Strategy,Intellectual Property Office,16/01/2020,Staff Costs,People Places & Serv Directorate,Tracy Mountain,I0026,800,Not Applicable
Department for Business Energy and Industrial Strategy,Intellectual Property Office,10/01/2020,Information Technology,Projects,Deloitte MCS Limited,8000895083,"108,000.00",Not Applicable
Department for Business Energy and Industrial Strategy,Intellectual Property Office,10/01/2020,Information Technology,Projects,Deloitte MCS Limited,8000922828,"13,833.60",Not Applicable
Department for Business Energy and Industrial Strategy,Intellectual Property Office,20/01/2020,Miscellaneous Expenses General,People Places & Serv Directorate,Countisbury Fruit Supply,4852,680,Not Applicable
Department for Business Energy and Industrial Strategy,Intellectual Property Office,28/01/2020,Staff Costs,Copyright and Enforcement Directorate,Gavin Terry Consulting,0120/187,"2,446.76",Not Applicable
Department for Business Energy and Industrial Strategy,Intellectual Property Office,22/01/2020,Pay Costs,IT Directorate,Alexander Mann Solutions Limited,2133944,"2,917.54",Not Applicable
Department for Business Energy and Industrial Strategy,Intellectual Property Office,08/01/2020,Pay Costs,Projects,Alexander Mann Solutions Limited,2133950,"2,408.41",Not Applicable
Department for Business Energy and Industrial Strategy,Intellectual Property Office,03/01/2020,Pay Costs,Finance Directorate,Alexander Mann Solutions Limited,2133958,697.55,Not Applicable
Department for Business Energy and Industrial Strategy,Intellectual Property Office,07/01/2020,Pay Costs,IT Directorate,Alexander Mann Solutions Limited,2133968,"9,239.04",Not Applicable
Department for Business Energy and Industrial Strategy,Intellectual Property Office,07/01/2020,Pay Costs,IT Directorate,Alexander Mann Solutions Limited,2133969,"2,549.86",Not Applicable
Department for Business Energy and Industrial Strategy,Intellectual Property Office,14/01/2020,Pay Costs,IT Directorate,Alexander Mann Solutions Limited,2133970,"2,930.40",Not Applicable
Department for Business Energy and Industrial Strategy,Intellectual Property Office,07/01/2020,Pay Costs,IT Directorate,Alexander Mann Solutions Limited,2135935,"3,353.76",Not Applicable
Department for Business Energy and Industrial Strategy,Intellectual Property Office,08/01/2020,Pay Costs,Projects,Alexander Mann Solutions Limited,2135937,"2,388.29",Not Applicable
Department for Business Energy and Industrial Strategy,Intellectual Property Office,07/01/2020,Pay Costs,IT Directorate,Alexander Mann Solutions Limited,2135938,"2,383.54",Not Applicable
Department for Business Energy and Industrial Strategy,Intellectual Property Office,08/01/2020,Pay Costs,Projects,Alexander Mann Solutions Limited,2135939,"3,896.57",Not Applicable
Department for Business Energy and Industrial Strategy,Intellectual Property Office,03/01/2020,Pay Costs,Finance Directorate,Alexander Mann Solutions Limited,2135942,693.11,Not Applicable
Department for Business Energy and Industrial Strategy,Intellectual Property Office,07/01/2020,Pay Costs,IT Directorate,Alexander Mann Solutions Limited,2135944,"3,354.91",Not Applicable
Department for Business Energy and Industrial Strategy,Intellectual Property Office,07/01/2020,Pay Costs,Projects,Alexander Mann Solutions Limited,2135945,"3,483.62",Not Applicable
Department for Business Energy and Industrial Strategy,Intellectual Property Office,07/01/2020,Pay Costs,Projects,Alexander Mann Solutions Limited,2135946,"3,184.13",Not Applicable
Department for Business Energy and Industrial Strategy,Intellectual Property Office,07/01/2020,Pay Costs,IT Directorate,Alexander Mann Solutions Limited,2135952,"5,279.47",Not Applicable
Department for Business Energy and Industrial Strategy,Intellectual Property Office,07/01/2020,Pay Costs,Projects,Alexander Mann Solutions Limited,2135953,"2,151.60",Not Applicable
Department for Business Energy and Industrial Strategy,Intellectual Property Office,07/01/2020,Pay Costs,Projects,Alexander Mann Solutions Limited,2135956,"3,465.30",Not Applicable
Department for Business Energy and Industrial Strategy,Intellectual Property Office,07/01/2020,Pay Costs,IT Directorate,Alexander Mann Solutions Limited,2135958,"1,278.54",Not Applicable
Department for Business Energy and Industrial Strategy,Intellectual Property Office,06/01/2020,Pay Costs,Innovation Directorate,Alexander Mann Solutions Limited,2135961,671.84,Not Applicable
Department for Business Energy and Industrial Strategy,Intellectual Property Office,08/01/2020,Pay Costs,IT Directorate,Alexander Mann Solutions Limited,2137424,"1,099.93",Not Applicable
Department for Business Energy and Industrial Strategy,Intellectual Property Office,08/01/2020,Pay Costs,Patent Directorate,Alexander Mann Solutions Limited,2137425,"2,976.86",Not Applicable
Department for Business Energy and Industrial Strategy,Intellectual Property Office,08/01/2020,Pay Costs,IT Directorate,Alexander Mann Solutions Limited,2137427,"2,221.22",Not Applicable
Department for Business Energy and Industrial Strategy,Intellectual Property Office,08/01/2020,Pay Costs,IT Directorate,Alexander Mann Solutions Limited,2137432,"3,079.68",Not Applicable
Department for Business Energy and Industrial Strategy,Intellectual Property Office,08/01/2020,Pay Costs,Patent Directorate,Alexander Mann Solutions Limited,2137433,582.08,Not Applicable
Department for Business Energy and Industrial Strategy,Intellectual Property Office,08/01/2020,Pay Costs,Trade Mark Directorate,Alexander Mann Solutions Limited,2137434,666.46,Not Applicable
Department for Business Energy and Industrial Strategy,Intellectual Property Office,13/01/2020,Pay Costs,Patent Directorate,Alexander Mann Solutions Limited,2138715,510.95,Not Applicable
Department for Business Energy and Industrial Strategy,Intellectual Property Office,13/01/2020,Pay Costs,Projects,Alexander Mann Solutions Limited,2138720,"3,058.44",Not Applicable
Department for Business Energy and Industrial Strategy,Intellectual Property Office,13/01/2020,Pay Costs,Projects,Alexander Mann Solutions Limited,2138721,"1,278.88",Not Applicable
Department for Business Energy and Industrial Strategy,Intellectual Property Office,13/01/2020,Pay Costs,IT Directorate,Alexander Mann Solutions Limited,2138725,997.15,Not Applicable
Department for Business Energy and Industrial Strategy,Intellectual Property Office,13/01/2020,Pay Costs,Projects,Alexander Mann Solutions Limited,2138726,"3,059.94",Not Applicable
Department for Business Energy and Industrial Strategy,Intellectual Property Office,13/01/2020,Pay Costs,Patent Directorate,Alexander Mann Solutions Limited,2138727,537.6,Not Applicable
Department for Business Energy and Industrial Strategy,Intellectual Property Office,13/01/2020,Pay Costs,Patent Directorate,Alexander Mann Solutions Limited,2138728,524.28,Not Applicable
Department for Business Energy and Industrial Strategy,Intellectual Property Office,13/01/2020,Pay Costs,Patent Directorate,Alexander Mann Solutions Limited,2138730,526.72,Not Applicable
Department for Business Energy and Industrial Strategy,Intellectual Property Office,13/01/2020,Pay Costs,IT Directorate,Alexander Mann Solutions Limited,2138731,699.05,Not Applicable
Department for Business Energy and Industrial Strategy,Intellectual Property Office,13/01/2020,Pay Costs,IT Directorate,Alexander Mann Solutions Limited,2138732,"2,257.20",Not Applicable
Department for Business Energy and Industrial Strategy,Intellectual Property Office,13/01/2020,Pay Costs,Trade Mark Directorate,Alexander Mann Solutions Limited,2138734,533.16,Not Applicable
Department for Business Energy and Industrial Strategy,Intellectual Property Office,13/01/2020,Pay Costs,Projects,Alexander Mann Solutions Limited,2138736,"1,039.60",Not Applicable
Department for Business Energy and Industrial Strategy,Intellectual Property Office,13/01/2020,Pay Costs,Innovation Directorate,Alexander Mann Solutions Limited,2138739,844.49,Not Applicable
Department for Business Energy and Industrial Strategy,Intellectual Property Office,13/01/2020,Pay Costs,Trade Mark Directorate,Alexander Mann Solutions Limited,2138740,783.54,Not Applicable
Department for Business Energy and Industrial Strategy,Intellectual Property Office,20/01/2020,Pay Costs,IT Directorate,Alexander Mann Solutions Limited,2140372,"2,929.30",Not Applicable
Department for Business Energy and Industrial Strategy,Intellectual Property Office,20/01/2020,Pay Costs,IT Directorate,Alexander Mann Solutions Limited,2140374,810.7,Not Applicable
Department for Business Energy and Industrial Strategy,Intellectual Property Office,27/01/2020,Pay Costs,Patent Directorate,Alexander Mann Solutions Limited,2140375,"2,480.84",Not Applicable
Department for Business Energy and Industrial Strategy,Intellectual Property Office,20/01/2020,Pay Costs,Projects,Alexander Mann Solutions Limited,2140376,"3,866.75",Not Applicable
Department for Business Energy and Industrial Strategy,Intellectual Property Office,27/01/2020,Pay Costs,Patent Directorate,Alexander Mann Solutions Limited,2140377,"2,480.75",Not Applicable
Department for Business Energy and Industrial Strategy,Intellectual Property Office,27/01/2020,Pay Costs,Patent Directorate,Alexander Mann Solutions Limited,2140378,"2,480.75",Not Applicable
Department for Business Energy and Industrial Strategy,Intellectual Property Office,27/01/2020,Pay Costs,Patent Directorate,Alexander Mann Solutions Limited,2140379,"2,480.72",Not Applicable
Department for Business Energy and Industrial Strategy,Intellectual Property Office,20/01/2020,Pay Costs,Projects,Alexander Mann Solutions Limited,2140380,"3,696.74",Not Applicable
Department for Business Energy and Industrial Strategy,Intellectual Property Office,20/01/2020,Pay Costs,IT Directorate,Alexander Mann Solutions Limited,2140382,"2,927.64",Not Applicable
Department for Business Energy and Industrial Strategy,Intellectual Property Office,20/01/2020,Pay Costs,Patent Directorate,Alexander Mann Solutions Limited,2140383,610.13,Not Applicable
Department for Business Energy and Industrial Strategy,Intellectual Property Office,20/01/2020,Pay Costs,Finance Directorate,Alexander Mann Solutions Limited,2140384,706.44,Not Applicable
Department for Business Energy and Industrial Strategy,Intellectual Property Office,20/01/2020,Pay Costs,IT Directorate,Alexander Mann Solutions Limited,2140385,"3,494.70",Not Applicable
Department for Business Energy and Industrial Strategy,Intellectual Property Office,17/01/2020,Pay Costs,Projects,Alexander Mann Solutions Limited,2140386,"3,483.62",Not Applicable
Department for Business Energy and Industrial Strategy,Intellectual Property Office,20/01/2020,Pay Costs,Projects,Alexander Mann Solutions Limited,2140387,"3,314.38",Not Applicable
Department for Business Energy and Industrial Strategy,Intellectual Property Office,20/01/2020,Pay Costs,Patent Directorate,Alexander Mann Solutions Limited,2140388,662,Not Applicable
Department for Business Energy and Industrial Strategy,Intellectual Property Office,20/01/2020,Pay Costs,Patent Directorate,Alexander Mann Solutions Limited,2140389,666.46,Not Applicable
Department for Business Energy and Industrial Strategy,Intellectual Property Office,20/01/2020,Pay Costs,Patent Directorate,Alexander Mann Solutions Limited,2140390,589.96,Not Applicable
Department for Business Energy and Industrial Strategy,Intellectual Property Office,17/01/2020,Pay Costs,Patent Directorate,Alexander Mann Solutions Limited,2140391,657.56,Not Applicable
Department for Business Energy and Industrial Strategy,Intellectual Property Office,17/01/2020,Pay Costs,IT Directorate,Alexander Mann Solutions Limited,2140392,"3,714.94",Not Applicable
Department for Business Energy and Industrial Strategy,Intellectual Property Office,20/01/2020,Pay Costs,IT Directorate,Alexander Mann Solutions Limited,2140393,"2,930.40",Not Applicable
Department for Business Energy and Industrial Strategy,Intellectual Property Office,20/01/2020,Pay Costs,Projects,Alexander Mann Solutions Limited,2140394,"2,145.00",Not Applicable
Department for Business Energy and Industrial Strategy,Intellectual Property Office,20/01/2020,Pay Costs,Projects,Alexander Mann Solutions Limited,2140395,"3,465.30",Not Applicable
Department for Business Energy and Industrial Strategy,Intellectual Property Office,17/01/2020,Pay Costs,Trade Mark Directorate,Alexander Mann Solutions Limited,2140397,666.46,Not Applicable
Department for Business Energy and Industrial Strategy,Intellectual Property Office,20/01/2020,Pay Costs,IT Directorate,Alexander Mann Solutions Limited,2140398,"4,773.34",Not Applicable
Department for Business Energy and Industrial Strategy,Intellectual Property Office,17/01/2020,Pay Costs,Innovation Directorate,Alexander Mann Solutions Limited,2140400,644.24,Not Applicable
Department for Business Energy and Industrial Strategy,Intellectual Property Office,17/01/2020,Pay Costs,Trade Mark Directorate,Alexander Mann Solutions Limited,2140401,652.96,Not Applicable
Department for Business Energy and Industrial Strategy,Intellectual Property Office,17/01/2020,Pay Costs,Patent Directorate,Alexander Mann Solutions Limited,2140402,577.36,Not Applicable
Department for Business Energy and Industrial Strategy,Intellectual Property Office,17/01/2020,Pay Costs,IT Directorate,Alexander Mann Solutions Limited,2140403,"3,398.86",Not Applicable
Department for Business Energy and Industrial Strategy,Intellectual Property Office,17/01/2020,Pay Costs,Finance Directorate,Alexander Mann Solutions Limited,2140404,"1,764.14",Not Applicable
Department for Business Energy and Industrial Strategy,Intellectual Property Office,27/01/2020,Pay Costs,People Places & Serv Directorate,Alexander Mann Solutions Limited,2142509,873.6,Not Applicable
Department for Business Energy and Industrial Strategy,Intellectual Property Office,27/01/2020,Pay Costs,Projects,Alexander Mann Solutions Limited,2142512,"3,970.40",Not Applicable
Department for Business Energy and Industrial Strategy,Intellectual Property Office,27/01/2020,Pay Costs,Projects,Alexander Mann Solutions Limited,2142513,"4,873.24",Not Applicable
Department for Business Energy and Industrial Strategy,Intellectual Property Office,27/01/2020,Pay Costs,Projects,Alexander Mann Solutions Limited,2142514,"2,947.03",Not Applicable
Department for Business Energy and Industrial Strategy,Intellectual Property Office,27/01/2020,Pay Costs,Projects,Alexander Mann Solutions Limited,2142515,"3,856.61",Not Applicable
Department for Business Energy and Industrial Strategy,Intellectual Property Office,27/01/2020,Pay Costs,IT Directorate,Alexander Mann Solutions Limited,2142517,"2,867.20",Not Applicable
Department for Business Energy and Industrial Strategy,Intellectual Property Office,24/01/2020,Pay Costs,Finance Directorate,Alexander Mann Solutions Limited,2142519,706.44,Not Applicable
Department for Business Energy and Industrial Strategy,Intellectual Property Office,27/01/2020,Pay Costs,IT Directorate,Alexander Mann Solutions Limited,2142520,"3,354.91",Not Applicable
Department for Business Energy and Industrial Strategy,Intellectual Property Office,27/01/2020,Pay Costs,Projects,Alexander Mann Solutions Limited,2142521,"3,521.28",Not Applicable
Department for Business Energy and Industrial Strategy,Intellectual Property Office,27/01/2020,Pay Costs,Projects,Alexander Mann Solutions Limited,2142522,"3,180.77",Not Applicable
Department for Business Energy and Industrial Strategy,Intellectual Property Office,24/01/2020,Pay Costs,Patent Directorate,Alexander Mann Solutions Limited,2142523,670.9,Not Applicable
Department for Business Energy and Industrial Strategy,Intellectual Property Office,24/01/2020,Pay Costs,Patent Directorate,Alexander Mann Solutions Limited,2142524,724.21,Not Applicable
Department for Business Energy and Industrial Strategy,Intellectual Property Office,27/01/2020,Pay Costs,IT Directorate,Alexander Mann Solutions Limited,2142527,"5,832.14",Not Applicable
Department for Business Energy and Industrial Strategy,Intellectual Property Office,31/01/2020,Career Development Services,People Places & Serv Directorate,Amznmktplace,H57720200204epzqmkdyi,23.37,Not Applicable
Department for Business Energy and Industrial Strategy,Intellectual Property Office,31/01/2020,Career Development Services,People Places & Serv Directorate,Amazon.Co.Uk,H57720200204ghjnfmcbo,7.18,Not Applicable
Department for Business Energy and Industrial Strategy,Intellectual Property Office,31/01/2020,Career Development Services,Innovation Directorate,Eb *presenting Made Br,H57720200204qqntsxonp,780,Not Applicable
Department for Business Energy and Industrial Strategy,Intellectual Property Office,30/01/2020,Software Maintenance,Projects,The Intellectual Property,H57720200201kmtweksso,-170,Not Applicable
Department for Business Energy and Industrial Strategy,Intellectual Property Office,30/01/2020,Office Stationery,People Places & Serv Directorate,Value Products Ltd,H57720200201mjiwfnryi,34.02,Not Applicable
Department for Business Energy and Industrial Strategy,Intellectual Property Office,30/01/2020,Software Maintenance,Projects,The Intellectual Property,H57720200201vlcwjfrcy,-50,Not Applicable
Department for Business Energy and Industrial Strategy,Intellectual Property Office,30/01/2020,Software Maintenance,Projects,The Intellectual Property,H57720200201wwuxlgvon,-50,Not Applicable
Department for Business Energy and Industrial Strategy,Intellectual Property Office,29/01/2020,Office Stationery,People Places & Serv Directorate,Seton,H57720200131dmdbnpukh,64.73,Not Applicable
Department for Business Energy and Industrial Strategy,Intellectual Property Office,29/01/2020,Career Development Services,People Places & Serv Directorate,Sumup *evans Partners Lt,H57720200131joldptnrc,47.52,Not Applicable
Department for Business Energy and Industrial Strategy,Intellectual Property Office,29/01/2020,Steering Board,People Places & Serv Directorate,Office For National St,H57720200131kqxhbnsug,2.25,Not Applicable
Department for Business Energy and Industrial Strategy,Intellectual Property Office,29/01/2020,Steering Board,People Places & Serv Directorate,Sainsburys Superma,H57720200131ogyxhnagp,47.6,Not Applicable
Department for Business Energy and Industrial Strategy,Intellectual Property Office,29/01/2020,Network and infrastructure H/W,IT Directorate,Amazon.Co.Uk,H57720200131oiezfsejm,104.49,Not Applicable
Department for Business Energy and Industrial Strategy,Intellectual Property Office,29/01/2020,Overseas Patent Specifications,Patent Directorate,Elsevier,H57720200131openpytjz,29.96,Not Applicable
Department for Business Energy and Industrial Strategy,Intellectual Property Office,29/01/2020,Network and infrastructure H/W,IT Directorate,Amazon.Co.Uk,H57720200131ospcxwaot,158.58,Not Applicable
Department for Business Energy and Industrial Strategy,Intellectual Property Office,29/01/2020,Office Stationery,People Places & Serv Directorate,Tg Howell,H57720200131rdakqmrfc,74.7,Not Applicable
Department for Business Energy and Industrial Strategy,Intellectual Property Office,29/01/2020,Steering Board,People Places & Serv Directorate,Office For National St,H57720200131segcyyljq,14.65,Not Applicable
Department for Business Energy and Industrial Strategy,Intellectual Property Office,29/01/2020,Career Development Services,Innovation Directorate,Qa Limited / Qa.Co,H57720200131vvctmosfr,"2,152.80",Not Applicable
Department for Business Energy and Industrial Strategy,Intellectual Property Office,28/01/2020,Eyecare,People Places & Serv Directorate,Specsaversevougb-,H57720200130imylmzhlt,680,Not Applicable
Department for Business Energy and Industrial Strategy,Intellectual Property Office,28/01/2020,Office Stationery,People Places & Serv Directorate,Amazon.Co.Uk,H57720200130qnhfpabog,18.25,Not Applicable
Department for Business Energy and Industrial Strategy,Intellectual Property Office,28/01/2020,Office Stationery,People Places & Serv Directorate,Amznmktplace,H57720200130rxgjkfpuh,280.3,Not Applicable
Department for Business Energy and Industrial Strategy,Intellectual Property Office,28/01/2020,Software Maintenance,IT Directorate,Www.Printertree.Co,H57720200130syacigsxj,235.32,Not Applicable
Department for Business Energy and Industrial Strategy,Intellectual Property Office,28/01/2020,Network and infrastructure H/W,IT Directorate,Amznmktplace,H57720200130tjexbtgyu,24.9,Not Applicable
Department for Business Energy and Industrial Strategy,Intellectual Property Office,27/01/2020,Office Stationery,People Places & Serv Directorate,Halfords On Line,H57720200130ubbmpysnw,15.99,Not Applicable
Department for Business Energy and Industrial Strategy,Intellectual Property Office,28/01/2020,Overseas Patent Specifications,Patent Directorate,Jimmunol Article View,H57720200130vdouilfjc,29.76,Not Applicable
Department for Business Energy and Industrial Strategy,Intellectual Property Office,27/01/2020,Office Stationery,People Places & Serv Directorate,Screwfix Direct,H57720200129euthgbtwv,66.38,Not Applicable
Department for Business Energy and Industrial Strategy,Intellectual Property Office,27/01/2020,Office Stationery,People Places & Serv Directorate,Xma Ltd,H57720200129nuslxgxys,473.47,Not Applicable
Department for Business Energy and Industrial Strategy,Intellectual Property Office,27/01/2020,Career Development Services,Innovation Directorate,Sterling Networks,H57720200129sentdwnfd,15.6,Not Applicable
Department for Business Energy and Industrial Strategy,Intellectual Property Office,23/01/2020,Career Development Services,People Places & Serv Directorate,Www.Certitec.Com,H57720200128douhtyvsd,493.16,Not Applicable
Department for Business Energy and Industrial Strategy,Intellectual Property Office,24/01/2020,Career Development Services,Innovation Directorate,Www.Pmgltd.Co.Uk,H57720200128fwxqeonys,474,Not Applicable
Department for Business Energy and Industrial Strategy,Intellectual Property Office,24/01/2020,Books,Trade Mark Directorate,The Intellectual Property,H57720200128ofmagrfwr,-170,Not Applicable
Department for Business Energy and Industrial Strategy,Intellectual Property Office,23/01/2020,Research Projects,Innovation Directorate,Economist Subscription,H57720200128ucuwkkppl,190,Not Applicable
Department for Business Energy and Industrial Strategy,Intellectual Property Office,24/01/2020,Books,Trade Mark Directorate,The Intellectual Property,H57720200128zmkhbhypi,-50,Not Applicable
Department for Business Energy and Industrial Strategy,Intellectual Property Office,23/01/2020,Other,People Places & Serv Directorate,Zurich Insurance,H57720200125dghlrpzpt,"1,095.86",Not Applicable
Department for Business Energy and Industrial Strategy,Intellectual Property Office,23/01/2020,Books,People Places & Serv Directorate,Amazon.Co.Uk,H57720200125hpbslzghw,63.21,Not Applicable
Department for Business Energy and Industrial Strategy,Intellectual Property Office,23/01/2020,Office Stationery,People Places & Serv Directorate,Xma Ltd,H57720200125jcmnomwtd,137.26,Not Applicable
Department for Business Energy and Industrial Strategy,Intellectual Property Office,23/01/2020,Office Stationery,People Places & Serv Directorate,Screwfix Direct,H57720200125jgcnscern,24.99,Not Applicable
Department for Business Energy and Industrial Strategy,Intellectual Property Office,23/01/2020,Career Development Services,Innovation Directorate,Irm Uk,H57720200125nuhftbbpn,-120,Not Applicable
Department for Business Energy and Industrial Strategy,Intellectual Property Office,23/01/2020,Office Stationery,People Places & Serv Directorate,Alpha Electronics(Wales),H57720200125qrbsnrdym,240,Not Applicable
Department for Business Energy and Industrial Strategy,Intellectual Property Office,22/01/2020,Career Development Services,Innovation Directorate,Www.Pmgltd.Co.Uk,H57720200124bbtonybyu,"1,782.00",Not Applicable
Department for Business Energy and Industrial Strategy,Intellectual Property Office,22/01/2020,Advertising Distribution,Innovation Directorate,Campaignmonitor.Co,H57720200124htwgdmmbm,5.63,Not Applicable
Department for Business Energy and Industrial Strategy,Intellectual Property Office,21/01/2020,Office Stationery,People Places & Serv Directorate,Tfl Business Bops Web,H57720200124ivhdkcudg,11.5,Not Applicable
Department for Business Energy and Industrial Strategy,Intellectual Property Office,22/01/2020,Office Stationery,People Places & Serv Directorate,Www.Plexdisplay.Com,H57720200124mwmirvhvg,115.29,Not Applicable
Department for Business Energy and Industrial Strategy,Intellectual Property Office,21/01/2020,Career Development Services,Patent Directorate,The Celtic Manor,H57720200124wdcslydpg,140,Not Applicable
Department for Business Energy and Industrial Strategy,Intellectual Property Office,22/01/2020,Career Development Services,People Places & Serv Directorate,Asda Superstore 4928,H57720200124xrshncxpr,47.35,Not Applicable
Department for Business Energy and Industrial Strategy,Intellectual Property Office,21/01/2020,Perpetual Licences,Innovation Directorate,Dama UK Ltd,H57720200123bdqgpmwso,350,Not Applicable
Department for Business Energy and Industrial Strategy,Intellectual Property Office,21/01/2020,Office Stationery,People Places & Serv Directorate,B & Q 1300,H57720200123bhffoxqxk,-25,Not Applicable
Department for Business Energy and Industrial Strategy,Intellectual Property Office,21/01/2020,Overseas Patent Specifications,Patent Directorate,Elsevier,H57720200123ictsqjxef,34.18,Not Applicable
Department for Business Energy and Industrial Strategy,Intellectual Property Office,21/01/2020,Office Stationery,People Places & Serv Directorate,Tesco Pfs 3952,H57720200123ihygisdgn,68.17,Not Applicable
Department for Business Energy and Industrial Strategy,Intellectual Property Office,21/01/2020,Career Development Services,People Places & Serv Directorate,Tesco-Stores 6225,H57720200123muqwsvvus,12.3,Not Applicable
Department for Business Energy and Industrial Strategy,Intellectual Property Office,21/01/2020,Office Stationery,People Places & Serv Directorate,B & Q 1300,H57720200123nbjxcjkcj,27,Not Applicable
Department for Business Energy and Industrial Strategy,Intellectual Property Office,21/01/2020,Office Stationery,People Places & Serv Directorate,Screwfix Direct,H57720200123tgdjvxlyu,70.38,Not Applicable
Department for Business Energy and Industrial Strategy,Intellectual Property Office,20/01/2020,Network and infrastructure H/W,IT Directorate,Amazon.Co.Uk,H57720200122bqpvummio,94.97,Not Applicable
Department for Business Energy and Industrial Strategy,Intellectual Property Office,20/01/2020,Office Stationery,People Places & Serv Directorate,B&q Direct,H57720200122kqmlwurvc,28.42,Not Applicable
Department for Business Energy and Industrial Strategy,Intellectual Property Office,20/01/2020,Career Development Services,People Places & Serv Directorate,The Institute Of Leade,H57720200122slikplnsu,"1,200.00",Not Applicable
Department for Business Energy and Industrial Strategy,Intellectual Property Office,20/01/2020,Career Development Services,People Places & Serv Directorate,The Institute Of Leade,H57720200122sxyjqzhwe,240,Not Applicable
Department for Business Energy and Industrial Strategy,Intellectual Property Office,20/01/2020,Office Stationery,People Places & Serv Directorate,Business Ind Solutions,H57720200122uilybmqfi,154.56,Not Applicable
Department for Business Energy and Industrial Strategy,Intellectual Property Office,20/01/2020,Office Stationery,People Places & Serv Directorate,Screwfix Direct,H57720200122vfpxkmogd,17.99,Not Applicable
Department for Business Energy and Industrial Strategy,Intellectual Property Office,20/01/2020,Minor Works-Goods,People Places & Serv Directorate,Www.Lockshopdirect.Co.,H57720200122wvgrcnydb,220.8,Not Applicable
Department for Business Energy and Industrial Strategy,Intellectual Property Office,20/01/2020,Minor Works-Goods,People Places & Serv Directorate,Amznmktplace,H57720200122wxqrrrnsr,18.98,Not Applicable
Department for Business Energy and Industrial Strategy,Intellectual Property Office,17/01/2020,Office Stationery,People Places & Serv Directorate,Officemachines.Net,H57720200121cmuuxwsuv,102.9,Not Applicable
Department for Business Energy and Industrial Strategy,Intellectual Property Office,17/01/2020,Perpetual Licences,IT Directorate,Www.Meetingzone.Com,H57720200121dqwgovpbc,42.76,Not Applicable
Department for Business Energy and Industrial Strategy,Intellectual Property Office,17/01/2020,Overseas Patent Specifications,Patent Directorate,Clarivate US Science,H57720200121dwbmlbfoe,39.62,Not Applicable
Department for Business Energy and Industrial Strategy,Intellectual Property Office,17/01/2020,Perpetual Licences,IT Directorate,Meetingzone Ltd,H57720200121emhrknccf,145.19,Not Applicable
Department for Business Energy and Industrial Strategy,Intellectual Property Office,15/01/2020,Career Development Services,People Places & Serv Directorate,Usw Commercial Service,H57720200121fxjtdcgbk,"1,053.00",Not Applicable
Department for Business Energy and Industrial Strategy,Intellectual Property Office,16/01/2020,Office Stationery,People Places & Serv Directorate,Heat Outdoors,H57720200121hffwqxxwv,"1,102.40",Not Applicable
Department for Business Energy and Industrial Strategy,Intellectual Property Office,18/01/2020,Network and infrastructure H/W,Trade Mark Directorate,The Intellectual Property,H57720200121huxdtkqbi,50,Not Applicable
Department for Business Energy and Industrial Strategy,Intellectual Property Office,19/01/2020,Office Stationery,People Places & Serv Directorate,Amznmktplace,H57720200121mboirvyvf,263.42,Not Applicable
Department for Business Energy and Industrial Strategy,Intellectual Property Office,17/01/2020,Books,Patent Directorate,Oxforduniversitypr,H57720200121mhimhvhpw,"1,404.95",Not Applicable
Department for Business Energy and Industrial Strategy,Intellectual Property Office,17/01/2020,Minor Works-Goods,People Places & Serv Directorate,Ao Retail Limited,H57720200121rlvoeqwtp,594,Not Applicable
Department for Business Energy and Industrial Strategy,Intellectual Property Office,18/01/2020,Network and infrastructure H/W,Trade Mark Directorate,The Intellectual Property,H57720200121tfqlqvzfe,50,Not Applicable
Department for Business Energy and Industrial Strategy,Intellectual Property Office,17/01/2020,Perpetual Licences,IT Directorate,Atlassian,H57720200121tsszidess,786.04,Not Applicable
Department for Business Energy and Industrial Strategy,Intellectual Property Office,18/01/2020,Network and infrastructure H/W,Projects,The Intellectual Property,H57720200121zcibmvrhs,170,Not Applicable
Department for Business Energy and Industrial Strategy,Intellectual Property Office,17/01/2020,Office Stationery,People Places & Serv Directorate,Sq *floral Image Bristol,H57720200121zexmooewm,88.3,Not Applicable
Department for Business Energy and Industrial Strategy,Intellectual Property Office,16/01/2020,Office Stationery,People Places & Serv Directorate,Purlfrost,H57720200118cmwisgxjv,188.99,Not Applicable
Department for Business Energy and Industrial Strategy,Intellectual Property Office,16/01/2020,Steering Board,People Places & Serv Directorate,Farmersarmsgold Limited,H57720200118gknmwqfok,94.8,Not Applicable
Department for Business Energy and Industrial Strategy,Intellectual Property Office,16/01/2020,Overseas Patent Specifications,Patent Directorate,Wiley Article Pdf,H57720200118gwrryemed,46.49,Not Applicable
Department for Business Energy and Industrial Strategy,Intellectual Property Office,16/01/2020,Career Development Services,People Places & Serv Directorate,Paypal,H57720200118kixcgopqk,26.49,Not Applicable
Department for Business Energy and Industrial Strategy,Intellectual Property Office,16/01/2020,Software Maintenance,IT Directorate,Jhl Printer Spares,H57720200118njotjkjel,133.8,Not Applicable
Department for Business Energy and Industrial Strategy,Intellectual Property Office,16/01/2020,Office Stationery,People Places & Serv Directorate,Screwfix Direct,H57720200118rvmdnoens,75,Not Applicable
Department for Business Energy and Industrial Strategy,Intellectual Property Office,16/01/2020,Entertainment,People Places & Serv Directorate,Www.Uk.Edensprings.Com,H57720200118xobuqvpvn,72.96,Not Applicable
Department for Business Energy and Industrial Strategy,Intellectual Property Office,15/01/2020,Office Stationery,People Places & Serv Directorate,Plastic-Id,H57720200117cdpdyjdfx,41.4,Not Applicable
Department for Business Energy and Industrial Strategy,Intellectual Property Office,15/01/2020,Office Furniture,People Places & Serv Directorate,Www.Officefurnitureonline,H57720200117eoldsddst,290.4,Not Applicable
Department for Business Energy and Industrial Strategy,Intellectual Property Office,15/01/2020,Office Stationery,People Places & Serv Directorate,Amznmktplace,H57720200117pmippwckn,21.84,Not Applicable
Department for Business Energy and Industrial Strategy,Intellectual Property Office,15/01/2020,Office Stationery,People Places & Serv Directorate,Amazon.Co.Uk,H57720200117uwixjfilq,19.44,Not Applicable
Department for Business Energy and Industrial Strategy,Intellectual Property Office,14/01/2020,Advertising Distribution,Innovation Directorate,Campaignmonitor.Co,H57720200116ekliwejle,33.68,Not Applicable
Department for Business Energy and Industrial Strategy,Intellectual Property Office,14/01/2020,Minor Works-Goods,People Places & Serv Directorate,Acorn Glass & Glazing,H57720200116icrpbnkbf,302.33,Not Applicable
Department for Business Energy and Industrial Strategy,Intellectual Property Office,13/01/2020,Career Development Services,Innovation Directorate,The Knowledge Academy,H57720200116kwvyhyikl,"2,473.68",Not Applicable
Department for Business Energy and Industrial Strategy,Intellectual Property Office,14/01/2020,Office Stationery,People Places & Serv Directorate,Www.Eurekadirect.Co.Uk,H57720200116lghbqqedt,18.12,Not Applicable
Department for Business Energy and Industrial Strategy,Intellectual Property Office,14/01/2020,Office Stationery,People Places & Serv Directorate,Amznmktplace,H57720200116orkvkknrc,29.99,Not Applicable
Department for Business Energy and Industrial Strategy,Intellectual Property Office,14/01/2020,Office Stationery,People Places & Serv Directorate,Amazon.Co.Uk,H57720200116twxdhnvyp,99,Not Applicable
Department for Business Energy and Industrial Strategy,Intellectual Property Office,13/01/2020,Minor Works-Goods,People Places & Serv Directorate,Screwfix Direct,H57720200115cskmhrtof,29.99,Not Applicable
Department for Business Energy and Industrial Strategy,Intellectual Property Office,13/01/2020,Overseas Patent Specifications,Patent Directorate,The Intellectual Property,H57720200115fvvukenag,-60,Not Applicable
Department for Business Energy and Industrial Strategy,Intellectual Property Office,13/01/2020,Network and infrastructure H/W,IT Directorate,Amazon.Co.Uk,H57720200115lnofnyydr,71.96,Not Applicable
Department for Business Energy and Industrial Strategy,Intellectual Property Office,13/01/2020,T&S O-seas excl EPOQUE,Projects,Expedia 7512822214674,H57720200115rinjsmakb,111.5,Not Applicable
Department for Business Energy and Industrial Strategy,Intellectual Property Office,13/01/2020,Other,People Places & Serv Directorate,Tlc Southern,H57720200115rlurmlpei,23.46,Not Applicable
Department for Business Energy and Industrial Strategy,Intellectual Property Office,13/01/2020,Books,IT Directorate,Amazon.Co.Uk,H57720200115tylbsejfg,31.18,Not Applicable
Department for Business Energy and Industrial Strategy,Intellectual Property Office,13/01/2020,Network and infrastructure H/W,IT Directorate,Amazon.Co.Uk,H57720200115vfmlqmklj,16.56,Not Applicable
